bitfinex-derivatives/quotes_ETHF0:USTF0_20260204
["timestamp","ask_amount","ask_price","bid_price","bid_amount"]
[1770175869887,0.16813149,2268.6,2267.3,4.41609602]
[1770175870895,0.16813149,2268.4,2267.4,0.15835452]
[1770175871291,0.16813149,2268.4,2267.3,4.41609602]
[1770175872186,0.16813149,2268.4,2267.3,0.00409602]
[1770175872389,5.26529464,2268.2,2266.8,0.15835452]
[1770175872593,5.26529464,2268.1,2266.5,0.16847392]
[1770175872995,0.862,2268.0,2266.5,0.16847392]
[1770175873394,0.862,2268.0,2266.5,0.17341283]
[1770175873988,5.26529464,2267.8,2266.5,0.00493891]
[1770175874190,5.48606464,2267.8,2266.5,0.00493891]
[1770175874395,5.26529464,2267.7,2266.5,0.00493891]
[1770175874697,5.48608464,2267.7,2266.5,0.00493891]
[1770175874992,7.01529464,2268.1,2266.5,0.17363266]
[1770175875490,5.26529464,2268.0,2266.5,0.17363266]
[1770175875695,5.26529464,2268.3,2266.6,0.16869375]
[1770175875897,4.413,2268.4,2267.3,0.16838805]
[1770175876098,0.0042475,2268.8,2267.9,0.16838805]
[1770175876296,0.0042475,2268.8,2267.6,0.16838805]
[1770175877399,0.0042475,2268.8,2267.3,0.16838805]
[1770175877898,0.0042475,2268.8,2267.7,0.16812059]
[1770175879497,0.0042475,2268.8,2267.1,0.22083]
[1770175879795,0.0042475,2268.8,2267.2,0.16812059]
[1770175880596,0.0042475,2268.8,2267.2,0.38895059]
[1770175880794,0.0042475,2268.8,2267.3,0.16828205]
[1770175881503,0.0042475,2268.8,2267.3,0.38910205]
[1770175881703,0.0042475,2268.8,2267.4,0.16828205]
[1770175883905,5.26529464,2269.7,2268.4,0.16813332]
[1770175884200,4.413,2270.2,2268.9,0.16813332]
[1770175884201,5.26529464,2270.1,2268.9,0.16813332]
[1770175884401,4.413,2270.2,2268.9,0.16813332]
[1770175884801,5.26529464,2270.3,2269.0,0.16813332]
[1770175885106,0.00517231,2270.3,2269.1,0.16813332]
[1770175885604,0.00517231,2270.3,2269.1,0.38877332]
[1770175885803,0.00517231,2270.3,2269.2,0.16813332]
[1770175887002,0.00517231,2270.3,2269.5,0.16787473]
[1770175887198,0.0012106,2271.1,2269.6,0.2206]
[1770175887503,0.0012106,2271.1,2269.7,0.16787473]
[1770175888208,0.00507637,2271.1,2269.7,0.16787473]
[1770175888603,0.00111348,2271.0,2269.7,0.16787473]
[1770175888801,0.00111348,2271.0,2269.2,0.862]
[1770175888802,0.00507637,2271.1,2270.5,0.16792329]
[1770175889006,0.00111348,2272.0,2270.5,0.16792329]
[1770175889907,0.00576243,2272.0,2270.5,0.16792329]
[1770175890408,0.00464895,2272.0,2270.5,0.16792329]
[1770175891210,0.00464895,2272.0,2270.7,0.16626924]
[1770175891411,0.00464895,2272.0,2270.9,0.16626924]
[1770175892109,0.00634201,2271.9,2270.9,0.16626924]
[1770175892309,8.40374233,2272.5,2270.9,0.16626924]
[1770175892310,0.22033,2272.3,2270.9,0.16626924]
[1770175892504,38.97901773,2274.1,2272.8,0.22029]
[1770175892708,7.3166626,2275.6,2274.0,3.08474233]
[1770175892907,0.16848003,2276.0,2274.8,0.22009]
[1770175893208,0.22196456,2276.2,2274.8,0.22009]
[1770175893209,0.16848003,2275.8,2274.8,0.22009]
[1770175893402,68.4572473,2276.1,2274.9,6.59933027]
[1770175893403,70.81611981,2276.1,2274.9,6.59933027]
[1770175893603,51.14510061,2276.0,2274.1,0.22015]
[1770175893802,3.08474233,2275.8,2273.8,0.22018]
[1770175894008,3.08474233,2275.8,2273.9,13.2261893]
[1770175894209,51.14510061,2275.7,2274.0,0.16626924]
[1770175894405,51.14510061,2276.0,2273.9,13.2261893]
[1770175894605,51.14822535,2276.0,2273.9,13.22986677]
[1770175894807,51.14822535,2276.0,2273.9,13.39613601]
[1770175895106,51.14822535,2276.0,2273.9,0.00367747]
[1770175895410,0.15753357,2275.5,2273.5,33.41661767]
[1770175895708,0.15753357,2275.3,2272.9,0.16626924]
[1770175895908,0.15753357,2275.1,2272.9,0.16626924]
[1770175896205,17.72480547,2275.3,2272.9,0.16626924]
[1770175896407,11.13133862,2278.3,2272.9,0.16626924]
[1770175896408,16.65080547,2276.1,2274.8,0.22009]
[1770175896606,0.15753357,2276.7,2275.0,0.16626924]
[1770175897309,0.16141785,2276.7,2275.0,0.17020354]
[1770175897810,0.00388428,2276.7,2275.2,0.16626924]
[1770175898003,0.38650715,2276.7,2275.2,1.02726924]
[1770175898210,0.38650715,2276.7,2275.3,0.16626924]
[1770175898511,0.15753357,2276.6,2275.3,0.16626924]
[1770175898711,0.00388428,2276.7,2275.3,0.16626924]
[1770175900004,0.15753357,2276.6,2275.3,0.16626924]
[1770175900209,0.2250893,2276.4,2275.3,0.16626924]
[1770175900506,0.2250893,2276.1,2275.0,0.0039343]
[1770175900707,0.15753357,2276.2,2275.0,0.17020354]
[1770175900909,0.2250893,2276.0,2275.0,0.17020354]
[1770175901104,0.15753357,2276.2,2275.0,0.17020354]
[1770175901304,0.15753357,2276.6,2275.0,0.17020354]
[1770175901508,0.00388428,2276.7,2274.2,0.38641924]
[1770175901509,0.15753357,2275.5,2274.2,0.38641924]
[1770175901702,0.38262287,2275.4,2274.2,0.38641924]
[1770175902005,0.15753357,2275.4,2274.3,0.16626924]
[1770175902211,0.86,2275.9,2274.3,0.16626924]
[1770175902212,0.15753357,2275.8,2274.3,0.16626924]
[1770175902510,0.15753357,2275.7,2274.3,0.17041738]
[1770175902809,0.15753357,2275.6,2274.3,0.17041738]
[1770175903613,0.15753357,2275.5,2274.3,0.17041738]
[1770175903912,0.15753357,2275.4,2274.3,0.17041738]
[1770175905314,0.38262287,2275.4,2274.3,0.17041738]
[1770175905515,0.86,2275.9,2274.3,0.00414814]
[1770175905516,0.15753357,2275.0,2274.3,0.00414814]
[1770175905814,0.2250893,2274.8,2274.3,0.00414814]
[1770175906004,0.2250893,2274.7,2274.0,0.1764808]
[1770175906205,50.94475335,2274.6,2274.0,0.1764808]
[1770175906415,0.16200175,2275.0,2274.0,0.1764808]
[1770175906710,0.38709105,2275.0,2274.0,0.1764808]
[1770175906917,0.2250893,2274.8,2274.0,0.1764808]
[1770175907214,0.2250893,2274.8,2274.0,0.18081543]
[1770175907413,0.16200175,2275.0,2274.0,0.00433463]
[1770175907611,0.16200175,2275.0,2273.3,0.17747827]
[1770175907612,0.2250893,2274.3,2273.3,0.17747827]
[1770175907813,0.15753357,2274.4,2273.3,0.17747827]
[1770175908613,0.15753357,2274.4,2273.4,0.16626924]
[1770175908910,0.15753357,2274.9,2273.6,0.16626924]
[1770175909214,0.38262287,2274.9,2273.6,0.16626924]
[1770175909418,0.38262287,2274.8,2273.6,0.16626924]
[1770175909713,0.15753357,2274.8,2273.7,0.16626924]
[1770175910111,0.2250893,2274.7,2273.7,0.16626924]
[1770175910508,0.2250893,2274.6,2273.7,0.38646924]
[1770175910712,0.2250893,2274.7,2273.7,0.38646924]
[1770175912119,0.15753357,2274.8,2273.9,2.52724667]
[1770175912318,0.00446818,2275.0,2273.9,2.52724667]
[1770175912621,0.00446818,2275.0,2274.0,0.22017]
[1770175912918,0.00446818,2275.0,2274.0,2.52723667]
[1770175913219,0.22955748,2275.0,2274.0,2.52723667]
[1770175913416,0.00446818,2275.0,2274.1,2.30706667]
[1770175914524,0.00446818,2275.0,2274.3,0.22014]
[1770175915024,0.22955748,2275.0,2274.3,0.22014]
[1770175915918,0.2250893,2274.6,2273.8,2.40743249]
[1770175916122,2.31488614,2274.7,2273.8,2.40743249]
[1770175916420,2.31935432,2275.0,2273.8,2.40743249]
[1770175916624,0.2250893,2274.9,2273.8,2.40743249]
[1770175917326,2.31935432,2275.0,2273.8,2.40743249]
[1770175917327,0.00446818,2275.0,2273.8,2.40743249]
[1770175917528,0.00446818,2275.0,2274.4,2.62755249]
[1770175917824,0.00446818,2275.0,2274.4,0.22012]
[1770175918025,0.2250893,2274.8,2274.4,0.22012]
[1770175918424,0.2250893,2274.7,2274.4,0.22012]
[1770175918623,0.2250893,2274.8,2274.4,0.22012]
[1770175919028,0.2250893,2274.7,2274.4,0.22012]
[1770175919325,0.2250893,2274.8,2274.4,0.22012]
[1770175919824,0.2250893,2274.7,2274.4,2.62755249]
[1770175920027,0.00446818,2275.0,2274.4,2.62755249]
[1770175920724,0.00446818,2275.0,2274.4,0.22012]
[1770175921028,0.00446818,2275.0,2274.1,2.40743249]
[1770175921029,2.31935432,2275.0,2274.1,2.40743249]
[1770175921226,2.31935432,2275.0,2274.1,2.62759249]
[1770175921428,50.94475335,2274.6,2274.1,0.22016]
[1770175921928,2.31935432,2275.0,2274.1,0.22016]
[1770175922428,0.00446818,2275.0,2274.3,2.62757249]
[1770175922722,2.31488614,2275.3,2274.4,11.26693231]
[1770175922926,4.402,2275.5,2274.4,11.26693231]
[1770175922927,4.402,2275.5,2274.7,2.40743249]
[1770175923120,4.402,2275.5,2274.8,7.69092458]
[1770175923320,4.402,2275.5,2274.8,5.28349209]
[1770175923520,6.71688614,2275.5,2274.8,0.22009]
[1770175923724,6.72020453,2275.5,2274.8,5.29331082]
[1770175923924,4.40531839,2275.5,2274.9,0.22008]
[1770175924121,4.40531839,2275.5,2274.9,0.22319343]
[1770175924330,6.72020453,2275.5,2274.9,0.22319343]
[1770175924529,2.31488614,2275.4,2274.9,0.00311343]
[1770175924726,2.31488614,2275.4,2274.8,5.07367093]
[1770175924727,2.31488614,2275.4,2274.2,3.79609773]
[1770175924924,2.11468958,2276.4,2275.2,2.62748249]
[1770175925129,2.11468958,2277.1,2275.4,2.40743249]
[1770175925333,2.11468958,2277.1,2275.5,2.62745249]
[1770175925931,2.33793134,2277.1,2275.5,2.63266929]
[1770175926434,2.33793134,2277.1,2275.7,2.40743249]
[1770175926825,2.13803085,2276.9,2275.6,2.40743249]
[1770175927034,2.13281405,2276.1,2274.7,2.40743249]
[1770175927235,2.13281405,2276.0,2274.7,2.40743249]
[1770175927535,2.13281405,2276.0,2274.8,2.40743249]
[1770175927933,2.13281405,2276.0,2274.8,2.41081862]
[1770175928933,2.13281405,2276.0,2274.5,3.79609773]
[1770175928934,2.08324099,2275.5,2274.4,6.20353022]
[1770175929135,2.08324099,2275.5,2274.4,2.40743249]
[1770175929634,2.08324099,2275.5,2274.5,2.40743249]
[1770175929826,2.08324099,2275.5,2274.5,2.41060671]
[1770175930026,2.0882321,2275.5,2274.5,2.41060671]
[1770175931133,2.0882321,2275.5,2274.5,0.00317422]
[1770175935634,2.0853057,2275.4,2274.5,0.00317422]
[1770175936938,2.0853057,2275.4,2274.5,4.91444496]
[1770175937140,2.0853057,2275.4,2274.5,0.00317422]
[1770175937439,50.94475335,2274.7,2274.5,0.00317422]
[1770175937641,50.94475335,2274.7,2274.5,4.8997491]
[1770175937839,50.94475335,2274.7,2274.5,0.00317422]
[1770175938039,50.94475335,2274.7,2274.4,4.89642236]
[1770175938240,2.0853057,2275.4,2274.5,4.8969234]
[1770175938541,2.0853057,2275.4,2274.3,3.79609773]
[1770175938736,2.0853057,2275.4,2274.4,4.89972234]
[1770175938937,2.0853057,2275.4,2274.5,4.89972234]
[1770175939242,2.0853057,2275.4,2274.5,0.00558341]
[1770175941038,0.00499111,2275.5,2274.6,2.40817369]
[1770175941242,2.06390147,2275.8,2274.9,2.40817369]
[1770175941444,2.06390147,2275.8,2275.0,4.88067381]
[1770175941644,2.06390147,2275.8,2274.8,3.79609773]
[1770175941947,2.06390147,2275.8,2274.9,4.88181953]
[1770175942142,2.06390147,2275.8,2275.0,4.88181953]
[1770175942443,2.06390147,2275.8,2274.7,5.06146365]
[1770175942444,2.0673609,2275.8,2274.7,6.20427142]
[1770175942644,2.0673609,2275.8,2274.9,2.40817369]
[1770175943440,2.0673609,2275.8,2274.7,3.79609773]
[1770175943644,2.0673609,2275.8,2274.8,4.8827628]
[1770175943845,2.0673609,2275.8,2274.9,4.8827628]
[1770175944146,2.0673609,2275.8,2274.7,6.20427142]
[1770175944447,2.0673609,2275.8,2274.8,4.88306824]
[1770175944744,2.0673609,2275.8,2274.9,4.88306824]
[1770175944946,2.0673609,2275.8,2274.7,2.40817369]
[1770175945142,2.0673609,2275.8,2274.7,4.64563886]
[1770175945347,2.07112813,2275.6,2274.5,0.00558341]
[1770175945545,2.07112813,2275.4,2274.5,0.00558341]
[1770175947547,2.07112813,2275.4,2274.0,4.5003847]
[1770175947847,2.07112813,2275.4,2273.5,2.40817369]
[1770175947848,2.13848394,2274.7,2273.5,2.40817369]
[1770175948052,0.2201,2274.8,2273.5,2.40817369]
[1770175948053,5.559,2274.6,2273.5,2.40817369]
[1770175948247,7.69748394,2274.6,2273.5,2.40817369]
[1770175948453,2.13848394,2274.5,2273.5,2.40817369]
[1770175948659,2.13848394,2274.5,2273.5,2.41144148]
[1770175950355,9.05597254,2275.3,2274.2,1.55727147]
[1770175950560,2.47939916,2275.2,2273.7,3.06425643]
[1770175950760,2.69945916,2275.2,2273.5,4.43459842]
[1770175951061,2.69945916,2275.2,2273.5,0.00326779]
[1770175951360,50.94475335,2274.2,2273.5,0.00326779]
[1770175951660,50.94872434,2274.2,2273.5,0.00326779]
[1770175952362,50.94872434,2274.2,2273.6,2.40817369]
[1770175952761,0.00397099,2274.2,2273.6,2.40817369]
[1770175955156,2.47939916,2275.0,2273.8,3.06425643]
[1770175955361,6.57657338,2275.5,2273.9,2.62835369]
[1770175955362,2.47939916,2275.3,2273.9,2.62835369]
[1770175956363,2.48453372,2275.3,2273.9,2.62835369]
[1770175959166,2.48453372,2275.3,2274.1,2.40817369]
[1770175960568,2.48453372,2275.3,2274.1,2.62833369]
[1770175961468,6.88453372,2275.3,2274.1,2.62833369]
[1770175961870,2.47939916,2275.2,2274.1,2.62833369]
[1770175968274,50.94475335,2274.7,2274.1,2.62833369]
[1770175968477,2.47939916,2275.2,2274.1,2.62833369]
[1770175969171,0.00513456,2275.3,2274.1,2.62833369]
[1770175969374,0.21994,2276.4,2275.1,0.22006]
[1770175969573,0.21994,2276.4,2274.4,3.79609773]
[1770175969574,2.47939916,2276.2,2274.7,2.40817369]
[1770175969774,2.47939916,2276.0,2274.7,2.40817369]
[1770175970075,2.47939916,2275.8,2274.7,2.40817369]
[1770175970271,2.47939916,2275.7,2274.7,2.41146799]
[1770175971578,0.00415746,2275.8,2274.7,2.41146799]
[1770175972582,0.00415746,2275.8,2274.7,2.63156799]
[1770175972878,0.00415746,2275.8,2274.9,2.41318637]
[1770175973279,0.00415746,2275.8,2274.9,2.63326637]
[1770175975778,4.4,2276.1,2275.1,2.39371287]
[1770175975980,4.4,2276.1,2275.1,2.61377287]
[1770175976873,4.40432701,2276.1,2275.1,2.61377287]
[1770175977481,8.80032701,2276.1,2275.1,2.61377287]
[1770175978478,8.80032701,2276.1,2274.8,2.39371287]
[1770175978479,2.29075003,2275.8,2274.8,2.39371287]
[1770175978678,2.29075003,2275.6,2274.8,2.39371287]
[1770175978982,6.68675003,2275.6,2274.8,2.39371287]
[1770175979284,4.396,2275.4,2274.8,2.39371287]
[1770175979783,4.396,2275.3,2274.8,2.39371287]
[1770175979980,4.396,2275.4,2274.8,2.39371287]
[1770175980180,2.29075003,2275.6,2274.7,2.39700717]
[1770175980377,6.68675003,2275.2,2274.7,0.0032943]
[1770175980577,2.29075003,2275.2,2274.7,0.0032943]
[1770175980779,4.396,2275.0,2274.7,0.0032943]
[1770175980980,2.29075003,2275.8,2274.7,2.39700717]
[1770175981784,2.29075003,2275.8,2274.8,2.61380287]
[1770175981981,2.29075003,2275.8,2274.8,0.22009]
[1770175982180,2.29075003,2275.8,2274.7,0.0032943]
[1770175982486,4.40332701,2276.1,2274.3,0.22014]
[1770175982487,2.29075003,2275.6,2274.3,0.22014]
[1770175982681,2.29075003,2275.6,2274.2,2.39371287]
[1770175982682,2.51076003,2275.6,2274.2,2.39371287]
[1770175983584,2.51076003,2275.6,2274.2,2.39880736]
[1770175983977,2.29075003,2275.6,2274.2,2.39880736]
[1770175984179,2.29075003,2275.6,2274.6,0.22011]
[1770175990593,2.29075003,2275.6,2274.4,2.39371287]
[1770175991293,2.29075003,2275.6,2274.2,0.00509449]
[1770175994197,2.29075003,2275.6,2274.2,2.61894736]
[1770175997494,2.29075003,2275.6,2274.5,2.39371287]
[1770175999404,2.29075003,2275.7,2274.5,2.80495433]
[1770175999796,2.29075003,2275.7,2274.5,7.37927427]
[1770176000000,2.29075003,2275.7,2274.5,0.22012]
[1770176000899,2.29075003,2275.7,2274.6,0.22011]
[1770176001101,2.29075003,2275.7,2274.6,2.80494433]
[1770176002000,0.00432701,2276.1,2274.7,3.06548791]
[1770176002205,2.52584285,2276.1,2275.0,2.80490433]
[1770176002802,4.399,2276.6,2275.4,2.41160149]
[1770176003003,4.399,2276.6,2275.5,2.63162149]
[1770176003802,4.40314878,2276.6,2275.5,2.63162149]
[1770176004398,0.00414878,2276.6,2275.7,2.4202243]
[1770176004705,30.796,2277.7,2275.6,2.80484433]
[1770176004706,0.21979,2278.0,2275.9,2.4202243]
[1770176004902,2.31158557,2277.8,2276.2,2.4202243]
[1770176005104,2.31158557,2277.6,2276.2,2.4202243]
[1770176005304,2.31158557,2277.4,2276.2,2.4202243]
[1770176005699,2.31158557,2277.3,2276.2,2.4202243]
[1770176005905,5.259,2277.2,2276.2,2.42368705]
[1770176006106,7.57058557,2277.2,2276.2,2.42368705]
[1770176006306,2.31158557,2277.1,2276.2,2.42368705]
[1770176007801,5.259,2277.2,2276.2,2.42368705]
[1770176008004,1.51,2277.2,2276.2,2.42368705]
[1770176008208,4.398,2277.1,2276.2,2.42368705]
[1770176008408,2.31510574,2277.4,2276.2,2.64363705]
[1770176008709,2.31158557,2277.2,2276.4,2.40637865]
[1770176008909,2.31158557,2277.2,2276.3,0.21995]
[1770176010009,0.00352017,2277.4,2276.6,0.21991]
[1770176010208,4.398,2277.6,2276.7,2.40123059]
[1770176010403,1.525,2277.7,2276.7,2.40123059]
[1770176010404,4.398,2277.7,2276.7,2.40123059]
[1770176010604,6.70958557,2277.7,2276.7,2.40123059]
[1770176010811,6.70958557,2277.7,2276.8,0.2199]
[1770176010812,2.31158557,2277.6,2276.8,0.2199]
[1770176011207,2.31545194,2277.6,2276.8,0.2199]
[1770176011409,2.31545194,2277.6,2276.8,2.62113059]
[1770176011714,0.00386637,2277.6,2276.8,2.62113059]
[1770176012116,4.398,2277.7,2276.8,2.62113059]
[1770176012622,4.397,2277.7,2276.8,2.62113059]
[1770176013323,4.40212655,2277.7,2276.8,2.62113059]
[1770176014824,4.396,2277.6,2276.8,2.62113059]
[1770176016020,2.31158557,2277.5,2276.8,0.2199]
[1770176016420,2.31158557,2277.3,2276.2,0.00346275]
[1770176016822,2.31158557,2277.1,2276.2,0.00346275]
[1770176017624,2.31158557,2276.9,2276.2,0.00346275]
[1770176017926,2.31158557,2276.9,2275.8,0.21999]
[1770176019021,2.31158557,2276.9,2275.8,0.22367671]
[1770176019218,4.396,2276.8,2275.9,2.35813541]
[1770176019524,2.31158557,2277.2,2276.1,2.57809541]
[1770176019724,4.396,2277.1,2276.1,2.57809541]
[1770176020027,4.396,2277.1,2276.3,2.36316799]
[1770176020223,2.31158557,2277.5,2276.5,2.36316799]
[1770176021320,2.31158557,2277.5,2276.0,4.45822608]
[1770176021321,4.396,2277.6,2276.6,2.36316799]
[1770176022229,4.396,2277.6,2276.7,2.58756909]
[1770176022630,0.00512655,2277.7,2276.7,2.58756909]
[1770176022831,4.40112655,2277.7,2276.7,2.58756909]
[1770176023031,2.31158557,2278.5,2277.4,0.21983]
[1770176023225,2.31158557,2278.5,2277.4,2.58236254]
[1770176024032,2.31498043,2278.5,2277.4,2.58710669]
[1770176025429,0.00339486,2278.5,2277.6,2.56596405]
[1770176027735,2.31498043,2278.5,2277.6,2.56596405]
[1770176027938,2.31498043,2278.5,2277.6,0.21982]
[1770176028138,2.31498043,2278.5,2276.6,2.30627438]
[1770176028332,2.31498043,2278.5,2276.9,0.21989]
[1770176028638,2.31158557,2278.3,2277.0,2.31101853]
[1770176028837,2.31158557,2278.1,2277.0,2.31101853]
[1770176029236,47.91761425,2277.5,2277.0,2.31101853]
[1770176029433,5.254,2278.2,2276.4,2.54686304]
[1770176029434,2.31158557,2277.4,2276.4,2.31101853]
[1770176029737,4.395,2277.6,2276.4,2.31101853]
[1770176030139,2.31158557,2277.5,2276.4,0.21993]
[1770176030437,2.31158557,2277.5,2276.4,2.48130341]
[1770176030638,4.395,2277.4,2276.4,2.48130341]
[1770176030838,6.70658557,2277.5,2276.4,2.48130341]
[1770176031038,2.31158557,2277.5,2276.4,2.48130341]
[1770176031240,4.395,2277.7,2276.6,2.25800713]
[1770176031538,2.28468379,2277.8,2276.6,2.47791713]
[1770176031738,2.28468379,2277.8,2276.8,2.25800713]
[1770176031940,2.28468379,2277.8,2276.9,5.53251079]
[1770176032140,6.67968379,2278.1,2277.0,2.25677629]
[1770176032342,2.28468379,2278.1,2277.0,2.25677629]
[1770176033843,2.28468379,2278.1,2277.2,2.46225055]
[1770176034044,2.28468379,2278.1,2277.0,2.54686304]
[1770176034242,2.28468379,2278.1,2276.9,4.78926359]
[1770176034541,2.28468379,2278.1,2277.0,2.24240055]
[1770176035637,2.28468379,2278.1,2276.8,2.54686304]
[1770176035837,2.28468379,2278.1,2276.7,9.48585372]
[1770176036042,2.28468379,2278.1,2276.7,2.46230055]
[1770176037342,2.28468379,2278.1,2276.7,5.00916359]
[1770176038647,2.28468379,2278.1,2276.7,0.2199]
[1770176039143,2.28468379,2278.1,2276.7,2.45575547]
[1770176039344,2.28468379,2278.1,2276.9,2.23585547]
[1770176039544,6.67868379,2278.1,2277.0,2.23585547]
[1770176039747,2.353852,2278.0,2277.0,2.23585547]
[1770176039937,2.353852,2278.0,2277.1,2.45506253]
[1770176040145,6.747852,2278.3,2277.2,2.45505253]
[1770176040545,2.353852,2278.2,2277.2,2.45505253]
[1770176040942,2.353852,2278.2,2277.3,0.21985]
[1770176041346,2.353852,2278.2,2277.3,2.45504253]
[1770176041746,2.35724686,2278.5,2277.4,0.21984]
[1770176044456,2.353852,2278.3,2277.4,2.40900042]
[1770176045945,2.353852,2278.3,2277.4,0.21984]
[1770176047451,0.00339486,2278.5,2277.7,0.21981]
[1770176047654,0.00339486,2278.5,2277.7,2.41172553]
[1770176048951,2.35724686,2278.5,2277.7,2.41172553]
[1770176049152,2.35724686,2278.5,2277.7,0.21981]
[1770176049753,2.35724686,2278.5,2277.7,2.41229136]
[1770176051255,2.353852,2279.1,2278.1,2.20739728]
[1770176051553,2.353852,2279.6,2278.5,2.42712728]
[1770176052253,2.35832352,2279.6,2278.8,0.2197]
[1770176053555,2.35832352,2279.6,2278.5,5.26769365]
[1770176053556,2.35832352,2279.6,2278.5,0.00444187]
[1770176053756,2.353852,2279.3,2277.6,2.43023296]
[1770176054853,2.353852,2279.3,2277.6,2.43488341]
[1770176058757,2.573512,2279.3,2277.6,2.43488341]
[1770176058953,2.573512,2279.3,2277.6,0.22446045]
[1770176059354,2.573512,2279.3,2277.6,2.41619691]
[1770176059759,47.9141515,2278.1,2277.6,0.22446045]
[1770176059957,47.9141515,2278.1,2277.6,2.41414818]
[1770176060454,2.353852,2278.0,2277.0,0.21988]
[1770176060960,2.353852,2278.0,2276.7,2.18968773]
[1770176061557,2.35826621,2278.0,2276.7,2.19294737]
[1770176063158,2.35826621,2278.0,2276.7,2.1594333]
[1770176063454,2.31071259,2277.5,2276.0,0.21997]
[1770176063759,2.53054259,2277.5,2275.8,1.12436444]
[1770176063956,2.53054259,2277.5,2276.1,2.15398558]
[1770176064160,2.31071259,2277.5,2276.1,2.15398558]
[1770176064362,2.31071259,2277.5,2276.1,2.15892791]
[1770176065461,2.31071259,2277.5,2276.3,2.37392558]
[1770176066762,2.31071259,2277.5,2276.6,0.21991]
[1770176067360,2.31071259,2277.9,2276.6,2.39399039]
[1770176067960,2.31071259,2277.9,2276.8,5.23482613]
[1770176068155,2.31071259,2277.9,2276.8,5.45471613]
[1770176068961,2.31071259,2277.9,2276.9,0.21988]
[1770176069364,2.31071259,2277.9,2276.5,2.17897163]
[1770176071065,2.31071259,2277.9,2276.5,2.39889163]
[1770176073767,2.31071259,2277.9,2276.7,2.37147962]
[1770176074369,47.9141515,2276.9,2276.7,0.21991]
[1770176074564,18.93325048,2276.9,2276.5,2.1467185]
[1770176074769,2.31071259,2277.4,2276.5,2.1467185]
[1770176075768,2.31071259,2277.4,2276.7,0.21991]
[1770176076366,2.31071259,2277.4,2276.1,0.00494233]
[1770176076367,2.31071259,2277.2,2276.1,0.00494233]
[1770176076567,2.31071259,2277.1,2276.1,0.00494233]
[1770176077470,2.31071259,2277.1,2275.8,1.12436444]
[1770176077873,2.53059259,2277.0,2275.4,0.22003]
[1770176078571,2.53059259,2277.0,2275.4,0.22427138]
[1770176078770,2.31071259,2276.8,2275.4,0.00424138]
[1770176079374,2.31071259,2276.8,2275.4,2.37272669]
[1770176079875,2.31071259,2276.8,2275.5,2.36984193]
[1770176080177,2.31071259,2276.8,2275.8,2.14982193]
[1770176080376,2.31071259,2276.8,2275.8,2.36981193]
[1770176080675,2.31071259,2276.8,2275.9,2.36980193]
[1770176081773,2.31071259,2276.8,2275.9,0.21998]
[1770176096083,2.48173303,2276.6,2275.9,2.33684845]
[1770176096287,2.48173303,2276.6,2275.9,0.21998]
[1770176097893,2.52079664,2277.2,2275.7,2.54686304]
[1770176098593,2.52079664,2277.2,2276.1,0.21997]
[1770176100494,2.52079664,2277.2,2276.3,0.21994]
[1770176108097,2.52079664,2277.2,2276.2,0.04744332]
[1770176108292,2.52079664,2277.2,2276.6,0.21992]
[1770176108693,2.52079664,2277.2,2276.8,0.2199]
[1770176109198,2.49707498,2277.4,2276.8,0.2199]
[1770176111387,2.50108085,2277.7,2277.1,0.21987]
[1770176111593,2.50108085,2277.7,2277.1,0.22543961]
[1770176112699,0.00441421,2278.0,2277.4,0.21984]
[1770176113696,4.396,2278.6,2277.4,0.21984]
[1770176114392,4.396,2278.6,2277.5,0.21983]
[1770176114699,2.48173303,2278.5,2277.5,0.21983]
[1770176115998,2.48173303,2278.5,2277.6,0.21982]
[1770176117495,2.48173303,2278.5,2277.7,0.21981]
[1770176118795,2.48173303,2278.5,2277.1,2.55243265]
[1770176119100,2.48173303,2278.5,2277.2,0.21986]
[1770176119999,2.70148303,2278.3,2276.7,0.21991]
[1770176120198,2.48173303,2278.3,2276.7,0.21991]
[1770176120801,2.44447397,2278.1,2276.7,0.21991]
[1770176121001,2.44447397,2278.1,2276.7,0.22523598]
[1770176122399,2.44447397,2278.1,2276.8,0.2199]
[1770176122603,2.44447397,2278.1,2276.9,0.21988]
[1770176123804,2.44447397,2278.1,2277.1,0.21986]
[1770176127405,4.394,2278.2,2276.7,0.00532598]
[1770176127406,2.44447397,2277.1,2276.7,0.00532598]
[1770176127606,2.44447397,2277.2,2276.7,0.00532598]
[1770176127801,2.44447397,2277.2,2276.7,0.22523598]
[1770176128001,2.44447397,2278.0,2276.8,0.2199]
[1770176128709,2.44447397,2278.0,2276.9,0.21989]
[1770176131005,2.44447397,2277.8,2276.9,0.21989]
[1770176131304,2.44447397,2277.8,2276.4,4.35416175]
[1770176131607,2.44447397,2277.8,2276.3,0.21994]
[1770176131905,2.66427397,2277.8,2276.3,0.21994]
[1770176132203,2.66427397,2277.8,2275.7,4.72525831]
[1770176132204,2.66433397,2277.2,2275.3,2.54686304]
[1770176132406,3.06117874,2277.7,2275.3,2.54686304]
[1770176132407,2.44447397,2276.8,2275.3,0.00543452]
[1770176132703,2.44447397,2276.7,2275.3,1.21195483]
[1770176133006,2.44447397,2276.7,2275.5,0.22002]
[1770176133599,2.44447397,2276.7,2275.8,0.21999]
[1770176133809,2.44447397,2277.1,2276.2,0.21995]
[1770176134708,2.44982018,2277.1,2276.2,0.21995]
[1770176135902,2.44982018,2277.1,2276.3,0.21994]
[1770176136206,2.44982018,2277.1,2276.2,1.03672233]
[1770176136407,2.44447397,2277.4,2276.4,1.03672233]
[1770176137105,2.44447397,2277.4,2276.1,3.58358537]
[1770176137301,2.44447397,2277.4,2276.6,0.21991]
[1770176137609,2.44977835,2277.4,2276.6,0.21991]
[1770176137809,2.44977835,2277.4,2276.0,2.76683304]
[1770176138004,2.44977835,2277.4,2276.0,7.09889042]
[1770176138207,2.44977835,2277.4,2276.0,0.21997]
[1770176142015,6.84477835,2277.4,2276.0,0.21997]
[1770176142214,2.44447397,2277.3,2276.0,0.21997]
[1770176142719,2.44447397,2277.3,2276.1,0.21997]
[1770176144013,15.5783197,2276.2,2276.1,0.21997]
[1770176144212,15.5783197,2276.2,2275.7,6.94186304]
[1770176144414,2.44447397,2276.5,2275.7,6.94186304]
[1770176144617,2.44447397,2276.5,2276.1,0.21997]
[1770176147114,2.44447397,2276.5,2275.6,2.54686304]
[1770176147313,2.44447397,2276.5,2275.7,2.54686304]
[1770176147513,2.44447397,2276.5,2275.5,3.60131048]
[1770176147714,2.44447397,2276.5,2275.5,2.54686304]
[1770176147920,2.44447397,2276.5,2275.7,0.22]
[1770176157421,2.44447397,2276.5,2275.3,0.00543452]
[1770176159424,2.44447397,2276.5,2275.2,0.22005]
[1770176159623,2.44447397,2276.5,2275.0,4.06956005]
[1770176159823,2.44447397,2276.5,2275.1,4.32797755]
[1770176160132,2.44447397,2276.5,2274.8,12.517681]
[1770176160427,2.44447397,2276.5,2274.8,7.46121002]